Cogmind - Beta 16 @@@ ROGUE MODE // 2025.12.16 @ 16:25:28 Player: EuleBlut Result: Self-destructed Performance ------------- Evolutions (1) 500 Regions Visited (2) 400 Robots Destroyed (23) 115 Value Destroyed (355) 355 Prototype IDs (1) 20 Alien Tech Used (0) 0 Bonus (0) 0 TOTAL SCORE: 1390 Bonus ------- None Cogmind --------- Core Integrity 327/400 Matter 295/300 Energy 6/100 System Corruption 0% Temperature Cool (0) Movement Core (1450) Ox28 Location -9/Materials Parts ------- > --- POWER (1) -------- (None) > --- PROPULSION (2) --- (None) > --- UTILITY (4) ------ Huge Storage Unit ECM Suite > --- WEAPON (2) ------- Faulty Improved Medium Laser > --- INVENTORY (25) --- Light Treads Light Treads Huge Storage Unit High-capacity Matter Pod (10) Grenade Launcher Grenade Launcher Grenade Launcher Peak State ------------ > --- POWER ------------ Light Ion Engine > --- PROPULSION ------- Light Treads Compact Wheel > --- UTILITY ---------- Huge Storage Unit ECM Suite Light Armor Plating > --- WEAPON ----------- EM Pulse Gun Small Laser > --- INVENTORY -------- Light Treads Light Treads Huge Storage Unit EM Pulse Gun Improved Medium Laser Grenade Launcher Grenade Launcher Grenade Launcher [Rating: 9] Favorites ----------- Power Light Ion Engine Engine Light Ion Engine Propulsion Light Treads Treads Light Treads Wheel Compact Wheel Utility ECM Suite Device ECM Suite Storage Huge Storage Unit Protection Light Armor Plating Weapon Medium Laser Energy Gun Medium Laser Ballistic Gun Light Assault Rifle Build | -11 -10 -9 ------- Run | Yrd Mat Mat Slots Evolved 2 | . . 2 Power . | . . . Propulsion . | . . . Utility 2 | . . 2 Weapon . | . . . Parts Attached 21 | 6 12 3 Power 4 | 1 3 . Engine 4 | 1 3 . Core . | . . . Reactor . | . . . Propulsion 6 | 2 4 . Treads 3 | . 3 . Leg . | . . . Wheel 3 | 2 1 . Hover . | . . . Flight . | . . . Utility 4 | 1 2 1 Device 1 | . 1 . Storage 2 | 1 1 . Processor . | . . . Hackware . | . . . Protection 1 | . . 1 Artifact . | . . . Weapon 7 | 2 3 2 Energy Gun 5 | 1 2 2 Energy Cannon . | . . . Ballistic Gun 2 | 1 1 . Ballistic Cannon . | . . . Launcher . | . . . Special Weapon . | . . . Impact Weapon . | . . . Slashing Weapon . | . . . Piercing Weapon . | . . . Special Melee Weapon . | . . . Unidentified Prototypes 1 | . . 1 Parts Lost 11 | . 4 7 Power 3 | . 2 1 Propulsion 4 | . 2 2 Utility 1 | . . 1 Weapon 3 | . . 3 Highest Loss Streak 7 | . 3 7 To Critical Strikes . | . . . Average Backups 7 | 2 7 8 Power . | . 1 . Propulsion 1 | 1 . 2 Utility 1 | . 1 1 Weapon 4 | . 4 4 Tool/Special . | . . . Unused Backups 5 | . . 5 Power . | . . . Propulsion . | . . . Utility 2 | . . 2 Weapon 3 | . . 3 Tool/Special . | . . . Average Slot Usage (%) 94 | . 95 85 Engine 13 | . 13 9 Treads 20 | . 22 10 Wheel 4 | . 4 11 Device 13 | . 13 11 Storage 13 | . 14 11 Protection 1 | . . 11 Energy Gun 16 | . 15 21 Ballistic Gun 8 | . 9 . Peak Build Rating 9 | 6 7 9 Average Rating 6 | 3 6 8 On Entrance 4 | . 6 7 Avg Prop Armor Cover (%) 11 | . 13 9 Naked Turns . | . . . Heaviest Build 91 | 11 90 91 Greatest Support 40 | 32 40 16 Greatest Overweight (x) 5 | . 5 5 Average Overweight (x) 2 | . 1 5 Largest Inventory Capacity 25 | 8 25 25 Average Capacity 19 | 7 19 25 Most Carried 10 | 5 10 9 Average Carried 7 | 3 7 8 Final Capacity 25 | 8 25 25 Final Carried 8 | 4 8 7 Class Distribution -------------------- 100% | Mutant Dominant Class ---------------- Mutant | -10/Materials Mutant | -9/Materials Resources | -11 -10 -9 ----------- Run | Yrd Mat Mat Matter Collected 462 | 233 229 . Remotely . | . . . Salvage Created 701 | . 684 17 Parts 42 | . 40 2 Haulers Intercepted . | . . . Recyclers Shooed 6 | . 6 . Parts Field Recycled . | . . . Retrieved Matter . | . . . Parts Self-Destructed . | . . . Prevented . | . . . Parts Restored . | . . . Kills | -11 -10 -9 ------- Run | Yrd Mat Mat Combat Hostiles Destroyed 15 | . 14 1 Guns 15 | . 14 1 Classes Destroyed 6 | . 6 . Worker 1 | . 1 . Builder 1 | . 1 . Recycler 3 | . 3 . Watcher 3 | . 3 . Swarmer 10 | . 9 1 Grunt 5 | . 5 . Best Kill Streak 4 | . 4 1 Combat Bots Only 4 | . 4 1 Max Kills in Single Turn 1 | . 1 1 Gunslinging . | . . . Exploded . | . . . Melee . | . . . Uniques/NPCs Destroyed . | . . . Combat | -11 -10 -9 -------- Run | Yrd Mat Mat Hostile Shots Fired 150 | . 81 69 Missed 43 | . 21 22 Hits 107 | . 60 47 Projectile 107 | . 60 47 Critical Strikes 1 | . . 1 Damage Taken 1078 | . 576 502 Core 242 | . 169 73 Absorbed by Shields . | . . . Core Remaining (%) 66 | 100 32 . Volleys Fired 91 | . 79 12 Largest 2 | . 2 2 Hottest 80 | . 80 80 Shots Fired 171 | . 150 21 Gun 171 | . 150 21 Cannon . | . . . Launcher . | . . . Special . | . . . Kinetic 55 | . 55 . Thermal 88 | . 79 9 Explosive . | . . . Electromagnetic 28 | . 16 12 Robot Hit Streak 12 | . 8 12 Robot Miss Streak 14 | . 14 3 Penetration Max . | . . . Secondary Targets 3 | . 3 . Max Gunslinging Chain 1 | . 1 . Shots Hit Robots 90 | . 74 16 Core Hits 38 | . 35 3 Critical Kills . | . . . Critical Parts Destroyed . | . . . Critical Strikes 4 | . 4 . Burn 4 | . 4 . Melee Attacks . | . . . Impact . | . . . Slashing . | . . . Piercing . | . . . Sneak Attacks . | . . . Combat Hostiles . | . . . Follow-up Attacks . | . . . Damage Inflicted 1069 | . 891 178 Guns 1067 | . 889 178 Cannons . | . . . Explosions . | . . . Melee . | . . . Ramming 2 | . 2 . Kinetic 221 | . 221 . Thermal 610 | . 520 90 Explosive . | . . . Electromagnetic 236 | . 148 88 Impact . | . . . Slashing . | . . . Piercing . | . . . Highest Corruption . | . . . Average Corruption . | . . . Corruption Purged . | . . . Corruption Blocked . | . . . Overload Shots . | . . . Overflow Damage . | . . . Projectiles . | . . . Explosions . | . . . Melee . | . . . Knockbacks . | . . . Impact . | . . . Kinetic . | . . . Secondary . | . . . Self-Inflicted Damage . | . . . Shots . | . . . Rammed 1 | . 1 . Targets Rammed 1 | . 1 . Kicked . | . . . Crushed . | . . . Highest Temperature 114 | . 114 60 Average Temperature 35 | . 36 28 Received Heat Transfer 225 | . 123 102 Siege Activations . | . . . Martial Activations . | . . . Shielding Activations . | . . . Robots Disrupted . | . . . Combat Hostiles . | . . . Robots Corrupted . | . . . Combat Hostiles . | . . . Parts Fried 1 | . 1 . Impact Corruptions . | . . . Robots Melted . | . . . Combat Hostiles . | . . . Parts Melted 1 | . 1 . Heat Transferred 1919 | . 1719 200 Parts Sabotaged . | . . . Parts Stolen . | . . . Parts Stripped . | . . . Power Chain Reactions . | . . . Alert | -11 -10 -9 ------- Run | Yrd Mat Mat Maximum Alert Level . | . . . Low Security (%) 100 | 100 100 100 Level 1 . | . . . Level 2 . | . . . Level 3 . | . . . Level 4 . | . . . Level 5 . | . . . High Security . | . . . Max Security . | . . . Peak Influence 110 | . 110 35 Initial . | . . . Average 14 | . 15 2 Influence Increases 451 | . 376 75 Destroy 0b10 Robot/C 300 | . 280 20 Destroy 0b10 Robot/NC 40 | . 40 . Destroy Leader 66 | . 56 10 Lose Combat Pursuer 45 | . . 45 Influence Decreases 451 | . 376 75 Time Decay 356 | . 336 20 Lost Part 95 | . 40 55 Squads Dispatched 2 | . 1 1 Investigation . | . . . Extermination . | . . . Reinforcement 2 | . 1 1 Assault . | . . . Garrison . | . . . Intercept . | . . . Searches Triggered . | . . . Construction Impeded . | . . . Haulers Reinforced . | . . . Active Scanning Responses . | . . . Cargo Convoy Interrupts . | . . . Stealth | -11 -10 -9 --------- Run | Yrd Mat Mat Distress Signals 2 | . 1 1 Communications Jammed . | . . . Distress Signals . | . . . Times Spotted 47 | . 36 11 Peak Tracking Total 8 | . 5 8 Tactical Retreats 10 | . 6 4 ECM-based Alert Blocks 15 | . 11 4 Traps | -11 -10 -9 ------- Run | Yrd Mat Mat Traps Triggered 5 | . 5 . Indirectly . | . . . Trap Hack Attempts . | . . . Triggered . | . . . Disarmed . | . . . Reprogrammed . | . . . Reused . | . . . Traps Extracted . | . . . Installed . | . . . Triggered . | . . . Machines | -11 -10 -9 ---------- Run | Yrd Mat Mat Machines Disabled . | . . . Max in Single Turn . | . . . Machines Repaired . | . . . Machines Dismantled . | . . . Machines Sabotaged . | . . . Overloaded Fab Kills . | . . . Hacking | -11 -10 -9 --------- Run | Yrd Mat Mat Machines Accessed 1 | . 1 . Terminals 1 | . 1 . Fabricators . | . . . Repair Stations . | . . . Recycling Units . | . . . Scanalyzers . | . . . Garrison Access . | . . . Total Hacks 2 | . 2 . Successful . | . . . Failed 2 | . 2 . Catastrophic 1 | . 1 . Database Lockouts . | . . . Manual . | . . . Terminals 2 | . 2 . Fabricators . | . . . Repair Stations . | . . . Recycling Units . | . . . Scanalyzers . | . . . Garrison Access . | . . . Terminal Hacks . | . . . Fabricator Hacks . | . . . Repair Station Hacks . | . . . Recycling Unit Hacks . | . . . Scanalyzer . | . . . Garrison Access Hacks . | . . . Unauthorized Hacks . | . . . Terminals . | . . . Fabricators . | . . . Repair Stations . | . . . Recycling Units . | . . . Scanalyzers . | . . . Garrison Access . | . . . Data Cores Recovered . | . . . Used . | . . . Hacking Detections 1 | . 1 . Full Trace Events 1 | . 1 . Feedback Events . | . . . Feedback Blocked . | . . . Robot Schematics Acquired . | . . . Robots Built . | . . . Authchips . | . . . Time . | . . . Total Robot Build Rating . | . . . Part Schematics Acquired . | . . . Parts Built . | . . . Authchips . | . . . Time . | . . . Total Part Build Rating . | . . . Part Studies Acquired . | . . . Parts Repaired . | . . . Time . | . . . Parts Recycled . | . . . Recycled Matter . | . . . Retrieved Matter . | . . . Retrieved Components . | . . . Parts Scanalyzed . | . . . Part Schematics Acquired . | . . . Parts Damaged . | . . . Bothacking | -11 -10 -9 ------------ Run | Yrd Mat Mat Used RIF Installer . | . . . Robots Hacked . | . . . Non-combat . | . . . Combat . | . . . Robot Hacks Applied . | . . . Relay Couplers Released . | . . . Fabnet Peak Effective % . | . . . Robots Rewired . | . . . Allies Hacked . | . . . Hacks Repelled . | . . . Allies | -11 -10 -9 -------- Run | Yrd Mat Mat Total Allies . | . . . Largest Group . | . . . Highest-Rated Group . | . . . Highest-Rated Ally . | . . . Total Orders . | . . . Ally Attacks . | . . . Total Damage . | . . . Kills . | . . . Allies Corrupted . | . . . Allies Melted . | . . . Intel | -11 -10 -9 ------- Run | Yrd Mat Mat Active Infowar (turns) 2536 | . 2313 223 ECM 2536 | . 2313 223 Robot Analysis Total . | . . . Derelict Logs Recovered . | . . . Drone Launches . | . . . Drone Recoveries . | . . . Exploration | -11 -10 -9 ------------- Run | Yrd Mat Mat Turns Passed 2643 | 58 2331 254 Spaces Moved 1033 | 39 879 115 Core 39 | 1 38 . Treads 592 | . 592 . Legs . | . . . Wheels 402 | 38 249 115 Hover . | . . . Flight . | . . . Fastest Speed 50 | 50 100 175 Average Speed 216 | 98 227 175 Slowest Speed 480 | 100 480 175 Overloaded Moves . | . . . Propulsion Burnouts . | . . . Robots Hopped . | . . . Potential Cave-ins . | . . . Cave-ins Triggered . | . . . Exploration Rate (%) 36 | 3 95 11 Regions Visited 2 Branch Regions . Pre-discovered Areas . | . . . Known Exits Taken . | . . . Unknown Exits Taken 2 | 1 1 . Scrap Searched . | . . . Spaces Dug . | . . . Terrain Destroyed . | . . . Melee . | . . . Projectile . | . . . AOE . | . . . Terrain Rammed . | . . . Walls Destroyed . | . . . Machines Disabled . | . . . Actions | -11 -10 -9 --------- Run | Yrd Mat Mat Total 1277 | 58 1073 146 Wait 97 | 4 79 14 Move 1031 | 38 878 115 Hop . | . . . Pick Up 31 | 10 19 2 Fast Attach . | . . . Attach 23 | 6 14 3 Detach . | . . . Swap 2 | . 2 . Drop 1 | . 1 . Fire 91 | . 79 12 Melee . | . . . Ram . | . . . Kick . | . . . Crush 1 | . 1 . Escape Stasis . | . . . Rewire . | . . . Trap . | . . . Miscellaneous . | . . . Route ------- -11/Scrapyard -10/Materials (discovered 4 exits: [*Mat x3] / [*Min]) -9/Materials History --------- Turn | Location | Event 16 | -11/Scrapyard | Discovered new exit (range 15) 59 | -11/Scrapyard | Entered Materials 231 | -10/Materials | Discovered new exit (range 14) 290 | -10/Materials | Core integrity fell below 50% 311 | -10/Materials | Lost 3 parts (1p2n) 313 | -10/Materials | Build established: Mutant 369 | -10/Materials | Discovered new exit (range 12) 591 | -10/Materials | Discovered new exit (range 7) 890 | -10/Materials | Discovered new exit (range 8) 959 | -10/Materials | Derelicts attacked the area 2390 | -10/Materials | Entered another Materials area 2390 | -9/Materials | Evolved 2 slots: Utility x2 2644 | -9/Materials | Self-destructed Last Messages --------------- K-01 Serf collects debris. Acquired Hcp. Matter Pod. K-01 Serf cleans the Nuclear Reactor. W-16 Scout sends out distress signal. Destroyed Flight Unit. ALERT: Hostiles spotted, dispatching reinforcements to Terminal M005. Lgt. Ion Engine destroyed. S-10 Pest destroyed. Critical hit (Burn: +37). Lgt. Treads destroyed. EM Pulse Gun destroyed. Sml. Laser destroyed. S-10 Pest destroyed. EM Pulse Gun destroyed. Identified Imp. Medium Laser. Faulty integration damages Lgt. Armor Plating (-4). Lgt. Armor Plating destroyed. Com. Wheel destroyed. Map ----- +----------------------------------------------------+ | ????????????????????????????????????????????????? | | ????????????????????????????????????????????????? | | ????????????????????????????????????????????????? | | ????????????????????????????????????????????????? | | ????????????????????????????????????????????????? | | ????????????????????????????????????????????????? | | ???????????????????????? ???????????????????????? | | ???????????????????????? ???????????????????????? | | ???????????????????????? ???????????????????????? | | ???????????????????????# ???????????????????????? | | ???????????????????????# ???????????????????????? | | ???????????????????????# ???????????????????????? | | ??????????????????????? ???????????????????????? | | ???????????????????????#+####???????????????????? | | ???????????????????????# ???????????????????? | | ???????????????????????# """???????????????????? | | ???????????????????????# ""????????????????????? | | ???????????????????????# ""????????????????????? | | ?????????????????????#?? ?????????????????????? | | ?????????????????????# ? ?????????????????????? | | ?????????????????????# ##+#########?????????????? | | ?????????????????????# # #?????????????? | | ?????????????????????# # """ #?????????????? | | ?????????????????????# *+ """ #?????????????? | | ?????????????????????####Y# """ #?????????????? | | ????????????????????????#@# #?????????????? | | ????????????????????????# #########?????????????? | | ???????????????????????##s#######???????????????? | | ???????????????????????# %= #???????????????? | | ?????????????????####### [ """#???????????????? | | ################## # """#???????????????? | | #s """#???????????????? | | " + #???????????????? | | # """#???????????????? | | ?######## ######## # """#???????????????? | | ????????# #??########### """#???????????????? | | ????????# #??# [!! # #???????????????? | | ????????# #??# !! ##########???????????????? | | ????????# #??# !! #????????????????????????? | | ????????# #??# """ #????????????????????????? | | ????????# #??# """ #????????????????????????? | | ????????# #??# """ #????????????????????????? | | ????????# #??# #????????????????????????? | | ????????# #??# #????????????????????????? | | ######### ########+###########??????????????????? | | #??????????????????? | | #??????????????????? | | #??????????????????? | | ###########+############ #??????????????????? | | ???????# #??????# #?????????????????? | +----------------------------------------------------+ Best States ------------- Heat Dissipation 28 Energy Generation 10 Energy Capacity 250 Matter Stores 300 Matter Capacity 300 Sight Range 16 Terrain Scan Density 10 ECM Strength 1 Armor Coverage 150 Evasion (%) 40 Recoil Reduction 2 Item Schematics ----------------- None Robot Schematics ------------------ None Fabricated ------------ Nothing Repaired ---------- Nothing Studied --------- None Alien Tech Used ----------------- None Achievements -------------- None Challenges ------------ None Game ------ Seed TrackerVortexJammer Manual? 0 Play Time 00:16:22 Cumulative 9.8 hours Start 2025.12.16 @ 16:10:53 End 2025.12.16 @ 16:25:28 Sessions 1 Manual Loads 0 Difficulty Rogue Special Mode None Game No. 28 Rogue 27 Adventurer 0 Explorer 1 Win Type - Total 0 Types 0/0/0/0/0/0/0/0/0/0 Lore% 8 Gallery% 13 Achievement% 11 Wizard Run 0 Options --------- Layout 1 ASCII 0 Keyboard 0 Movement Mouse Keybinds 0 Fullscreen 2 Font 24/Smallcaps Map View 50x35 Zoom Use 5% Tactical HUD 0 Map Filters NONE Filters NONE Steam 1 RUN: 6994f067-7599-445d-9f69-7f87194b5ab2